bitfinex/quotes_SOLUSD_20250617
["timestamp","ask_amount","ask_price","bid_price","bid_amount"]
[1750161471795,5.43102405,150.71,150.67,12.06804535]
[1750161471995,12.066346,150.71,150.66,12.33728917]
[1750161472316,5.43102405,150.7,150.66,17.76831322]
[1750161474727,5.43102405,150.69,150.66,5.7]
[1750161474902,5.43102405,150.68,150.66,5.7]
[1750161475293,5.43102405,150.67,150.66,5.7]
[1750161475694,1.5599,150.7,150.66,5.7]
[1750161476009,6.63614042,150.69,150.66,5.7]
[1750161476211,5.43102405,150.68,150.66,5.7]
[1750161477709,5.43102405,150.67,150.66,5.7]
[1750161478021,6.63614042,150.69,150.66,5.7]
[1750161478196,5.43102405,150.68,150.66,5.7]
[1750161478623,66.95219371,150.72,150.66,5.7]
[1750161478624,24.74890707,150.76,150.66,12.3374385]
[1750161478929,5.43102405,150.72,150.68,5.43102405]
[1750161479718,5.43102405,150.72,150.68,12.06749514]
[1750161480019,5.43102405,150.72,150.67,12.06796885]
[1750161480020,5.43102405,150.71,150.67,12.06796885]
[1750161480224,26.0,150.73,150.67,12.06796885]
[1750161480421,5.43102405,150.72,150.68,5.43102405]
[1750161480828,5.43102405,150.71,150.67,12.06796885]
[1750161481034,5.43102405,150.7,150.66,12.33726243]
[1750161481210,32.63453489,150.73,150.66,17.76828648]
[1750161481211,5.43102405,150.71,150.66,17.76828648]
[1750161481409,5.43102405,150.71,150.67,5.43102405]
[1750161481614,5.43102405,150.71,150.67,12.06798162]
[1750161481826,5.43102405,150.71,150.67,6.63695757]
[1750161482208,12.06629663,150.71,150.67,6.63695757]
[1750161484633,5.43102405,150.71,150.67,12.06798162]
[1750161484822,30.99999487,150.72,150.67,12.06798162]
[1750161485128,30.99999487,150.72,150.68,5.43102405]
[1750161485516,30.99999487,150.72,150.67,6.63695757]
[1750161485715,30.99999487,150.72,150.68,5.43102405]
[1750161485931,30.99999487,150.72,150.67,12.06798162]
[1750161486140,30.99999487,150.72,150.67,6.63695757]
[1750161486310,30.99999487,150.72,150.67,12.06798162]
[1750161486933,5.43102405,150.71,150.67,12.06798162]
[1750161487737,12.06639359,150.71,150.66,12.33725795]
[1750161487926,12.06639359,150.71,150.66,17.768282]
[1750161488129,6.63536954,150.71,150.66,17.768282]
[1750161488442,12.06639359,150.71,150.66,17.768282]
[1750161489117,5.43102405,150.7,150.66,11.13102405]
[1750161489317,5.43102405,150.69,150.66,5.7]
[1750161489516,5.43102405,150.68,150.66,5.7]
[1750161491828,5.43102405,150.69,150.66,5.7]
[1750161493138,5.43102405,150.67,150.66,5.7]
[1750161493437,5.43102405,150.67,150.61,11.13102405]
[1750161493647,5.43102405,150.66,150.61,11.13102405]
[1750161494219,5.43102405,150.65,150.61,11.13102405]
[1750161494420,0.28432314,150.68,150.61,11.13102405]
[1750161494642,5.43102405,150.67,150.62,6.63897936]
[1750161494958,5.43102405,150.67,150.63,5.43102405]
[1750161495547,5.43102405,150.67,150.63,12.06971427]
[1750161496635,5.43102405,150.67,150.63,6.63869022]
[1750161496845,5.43102405,150.67,150.63,12.06971427]
[1750161499066,5.43102405,150.66,150.63,6.63869022]
[1750161500252,12.06850695,150.66,150.62,12.07008997]
[1750161500459,5.43102405,150.65,150.61,11.13102405]
[1750161501529,5.43102405,150.65,150.61,17.77053689]
[1750161504446,5.43102405,150.66,150.62,5.43102405]
[1750161505344,18.933972,150.68,150.62,5.43102405]
[1750161505547,5.43102405,150.66,150.62,5.43102405]
[1750161505945,5.43102405,150.67,150.63,5.43102405]
[1750161506472,6.6373225,150.67,150.63,5.43102405]
[1750161506760,12.06834655,150.67,150.63,5.43102405]
[1750161508537,5.43102405,150.66,150.62,12.07002547]
[1750161509565,12.06834655,150.67,150.62,12.07002547]
[1750161510262,12.06834655,150.67,150.62,6.63900142]
[1750161510450,12.06834655,150.67,150.62,12.07002547]
[1750161510650,12.06855243,150.66,150.61,17.77049554]
[1750161510842,5.43102405,150.65,150.61,17.77049554]
[1750161511042,6.63752838,150.66,150.61,17.77049554]
[1750161511364,5.43102405,150.65,150.61,17.77049554]
[1750161513247,18.933972,150.66,150.61,17.77049554]
[1750161513448,24.36499605,150.66,150.61,17.77049554]
[1750161514077,18.933972,150.66,150.62,5.43102405]
[1750161514244,24.36499605,150.66,150.62,5.43102405]
[1750161515366,31.00248633,150.66,150.61,17.77049554]
[1750161515868,31.00248633,150.66,150.62,5.43102405]
[1750161516679,5.43102405,150.65,150.61,5.7]
[1750161516975,5.43102405,150.62,150.59,6.64034078]
[1750161517151,5.43102405,150.62,150.58,6.6408997]
[1750161517353,5.43102405,150.62,150.58,12.07192375]
[1750161520477,18.933972,150.64,150.58,12.07192375]
[1750161520676,5.43102405,150.62,150.58,12.07192375]
[1750161521880,5.43102405,150.62,150.58,6.6408997]
[1750161522115,5.43102405,150.62,150.58,12.07192375]
[1750161522655,6.63889833,150.63,150.58,12.07192375]
[1750161522964,12.06992238,150.63,150.59,5.43102405]
[1750161523776,12.06992238,150.63,150.59,12.07151861]
[1750161524353,12.06992238,150.63,150.59,5.43102405]
[1750161524762,6.63889833,150.63,150.58,6.64080169]
[1750161524955,18.933972,150.65,150.61,5.43102405]
[1750161525172,5.43102405,150.64,150.6,5.43102405]
[1750161525565,5.43102405,150.62,150.58,6.64080169]
[1750161525859,5.43102405,150.62,150.58,12.07182574]
[1750161527388,5.43102405,150.63,150.59,5.43102405]
[1750161527592,5.43102405,150.63,150.58,6.64080169]
[1750161527774,5.43102405,150.63,150.59,5.43102405]
[1750161528092,6.63834306,150.64,150.59,5.43102405]
[1750161528285,5.43102405,150.63,150.59,5.43102405]
[1750161528458,5.43102405,150.63,150.58,6.64080169]
[1750161528661,5.43102405,150.63,150.59,5.43102405]
[1750161529286,5.43102405,150.64,150.6,5.43102405]
[1750161529488,5.43102405,150.64,150.59,5.43102405]
[1750161529793,5.43102405,150.63,150.59,5.43102405]
[1750161530277,5.43102405,150.63,150.6,6.64010624]
[1750161530458,5.43102405,150.64,150.6,6.64010624]
[1750161531367,5.43102405,150.64,150.59,12.07137366]
[1750161531564,25.57202383,150.65,150.59,12.07137366]
[1750161531883,5.43102405,150.63,150.59,12.07137366]
[1750161532982,5.43102405,150.64,150.59,12.07137366]
[1750161533487,6.63840926,150.64,150.59,12.07137366]
[1750161533688,12.06943331,150.64,150.59,12.07137366]
[1750161534869,6.63840926,150.64,150.59,12.07137366]
[1750161535066,12.06943331,150.64,150.59,12.07137366]
[1750161536787,5.43102405,150.63,150.59,12.07137366]
[1750161540181,5.43102405,150.63,150.59,6.64034961]
[1750161540386,5.43102405,150.63,150.59,12.07137366]
[1750161540587,12.06943331,150.64,150.59,12.07137366]
[1750161541277,12.06943331,150.64,150.57,51.91377301]
[1750161541278,12.06943331,150.64,150.58,6.64098817]
[1750161541583,12.06943331,150.64,150.59,5.43102405]
[1750161542586,12.06943331,150.64,150.59,12.07126977]
[1750161542785,5.43102405,150.64,150.59,12.07126977]
[1750161542978,5.43102405,150.63,150.59,12.07126977]
[1750161543174,5.43102405,150.61,150.57,57.34479706]
[1750161543393,5.43102405,150.61,150.57,51.91377301]
[1750161543587,31.71534719,150.64,150.57,51.91377301]
[1750161543788,5.43102405,150.6,150.57,51.91377301]
[1750161543979,5.43102405,150.6,150.57,5.7]
[1750161549003,25.57319653,150.62,150.57,5.7]
[1750161549308,5.43102405,150.61,150.57,11.13102405]
[1750161549624,25.57319653,150.62,150.57,11.13102405]
[1750161549912,5.43102405,150.61,150.57,11.13102405]
[1750161550324,25.57319653,150.62,150.57,11.13102405]
[1750161550488,12.0708903,150.61,150.57,11.13102405]
[1750161554310,12.0708903,150.61,150.57,5.43102405]
[1750161554524,12.0708903,150.61,150.56,12.07279392]
[1750161556012,24.08067291,150.6,150.55,6.64231152]
[1750161556210,5.43102405,150.59,150.55,5.43102405]
[1750161557517,18.64964886,150.6,150.56,5.43102405]
[1750161557703,30.72085695,150.6,150.56,5.43102405]
[1750161557888,30.72085695,150.6,150.55,6.64209707]
[1750161558093,30.72085695,150.6,150.56,5.43102405]
[1750161558891,5.43102405,150.59,150.55,12.07312112]
[1750161563119,5.43102405,150.58,150.54,17.7737363]
[1750161563510,12.07163784,150.59,150.54,17.7737363]
[1750161564627,5.43102405,150.59,150.55,12.07328999]
[1750161564795,3.47944407,150.59,150.55,10.12171001]
[1750161564998,3.76376721,150.59,150.55,10.12171001]
[1750161565708,18.64964886,150.6,150.55,6.64226594]
[1750161565924,22.12909293,150.6,150.56,3.47944407]
[1750161566420,18.64964886,150.6,150.56,3.47944407]
[1750161566625,22.12909293,150.6,150.56,3.47944407]
[1750161567013,29.47944407,150.61,150.57,3.47944407]
[1750161567217,26.0,150.61,150.57,3.47944407]
[1750161567418,26.0,150.61,150.56,6.64174724]
[1750161567619,26.0,150.61,150.57,3.47944407]
[1750161568504,18.933972,150.62,150.59,3.47944407]
[1750161568724,18.933972,150.62,150.58,3.47944407]
[1750161569207,18.933972,150.62,150.58,10.12037067]
[1750161570730,29.05267991,150.62,150.57,10.12071995]
[1750161570902,5.43607709,150.59,150.55,6.64231152]
[1750161571106,0.28432314,150.6,150.55,12.07838861]
[1750161571306,5.72040023,150.6,150.56,5.43607709]
[1750161572120,12.36051435,150.6,150.56,5.43607709]
[1750161573425,5.43607709,150.59,150.54,6.64275275]
[1750161573619,6.92443726,150.6,150.55,5.43607709]
[1750161573817,5.43607709,150.59,150.54,6.64275275]
[1750161574029,5.43607709,150.59,150.55,5.43607709]
[1750161574729,5.43607709,150.59,150.55,12.07811387]
[1750161577227,0.28432314,150.6,150.55,6.64203678]
[1750161577404,0.28432314,150.6,150.57,5.43607709]
[1750161577930,0.28432314,150.6,150.56,5.43607709]
[1750161578305,0.28432314,150.6,150.56,12.07780366]
[1750161578526,0.28432314,150.6,150.56,6.64172657]
[1750161578728,5.72040023,150.6,150.56,12.07780366]
[1750161579042,0.28432314,150.6,150.56,12.07780366]
[1750161579218,5.72040023,150.6,150.56,12.07780366]
[1750161579416,4.96245681,150.63,150.58,5.43607709]
[1750161579617,4.96245681,150.63,150.59,5.43607709]
[1750161579618,18.64964886,150.62,150.59,5.43607709]
[1750161580214,24.08572595,150.62,150.58,5.43607709]
[1750161580416,18.64964886,150.62,150.58,5.43607709]
[1750161580609,24.08572595,150.62,150.58,5.43607709]
[1750161581229,18.64964886,150.62,150.58,5.43607709]
[1750161581506,24.08572595,150.62,150.58,5.43607709]
[1750161582427,18.64964886,150.62,150.58,6.64075526]
[1750161582736,24.08572595,150.62,150.58,12.07683235]
[1750161583222,24.08572595,150.62,150.58,6.64075526]
[1750161583830,5.43607709,150.61,150.58,6.64075526]
[1750161584136,5.43607709,150.61,150.55,6.64231152]
[1750161584319,5.43607709,150.6,150.57,6.64142923]
[1750161585247,0.28432314,150.61,150.57,6.64142923]
[1750161585418,5.72040023,150.61,150.57,12.07750632]
[1750161585746,32.63863464,150.64,150.59,5.43607709]
[1750161586047,5.43607709,150.63,150.59,5.43607709]
[1750161586413,5.43607709,150.63,150.6,6.64010624]
[1750161586630,26.0,150.64,150.6,6.64010624]
[1750161586820,5.43607709,150.63,150.6,6.64010624]
[1750161587822,31.43607709,150.64,150.6,6.64010624]
[1750161591417,26.0,150.64,150.6,6.64010624]
[1750161591738,31.43607709,150.64,150.6,6.64010624]
[1750161592719,5.43607709,150.61,150.57,6.64142923]
[1750161593038,5.43607709,150.61,150.54,22.30683482]
[1750161593039,0.28432314,150.62,150.54,22.30683482]
[1750161593219,0.28432314,150.62,150.57,5.43607709]
[1750161593416,5.72040023,150.62,150.57,5.43607709]
[1750161594641,5.72040023,150.62,150.58,6.64098817]
[1750161596544,5.72040023,150.62,150.58,5.43607709]
[1750161596749,16.3351699,150.65,150.6,5.43607709]
[1750161597044,21.77124699,150.65,150.61,5.43607709]
[1750161597222,21.29695602,150.65,150.61,5.43607709]
[1750161597540,16.3351699,150.65,150.63,5.43607709]
[1750161597744,26.0,150.64,150.63,5.43607709]
[1750161597951,26.0,150.64,150.62,5.43607709]
[1750161598616,26.0,150.64,150.62,12.07509145]
[1750161599934,26.0,150.64,150.62,5.43607709]
[1750161600134,26.0,150.64,150.6,6.64010624]
[1750161600334,26.0,150.64,150.61,5.43607709]
[1750161600543,26.0,150.64,150.6,6.64010624]
[1750161600846,26.0,150.64,150.61,5.43607709]
[1750161602450,26.0,150.64,150.6,6.64010624]
[1750161602625,38.07455753,150.64,150.59,5.68]
[1750161602822,5.43607709,150.62,150.59,5.68]
[1750161603452,24.08572595,150.61,150.56,5.43607709]
[1750161603627,5.43607709,150.6,150.55,6.64223068]
[1750161603827,5.43607709,150.6,150.52,1.5637]
[1750161603828,18.64964886,150.58,150.52,1.5637]
[1750161604030,18.64964886,150.58,150.49,3.25026252]
[1750161604031,5.43607709,150.56,150.49,6.64495979]
[1750161604234,0.28432314,150.57,150.54,5.43607709]
[1750161604755,6.92582779,150.57,150.54,5.43607709]
[1750161605052,12.36190488,150.57,150.51,6.6439038]
[1750161605226,5.43607709,150.55,150.51,5.43607709]
[1750161605626,6.92582779,150.57,150.51,5.43607709]
[1750161605627,5.43607709,150.56,150.51,5.43607709]
[1750161606237,5.43607709,150.56,150.51,12.07998325]
[1750161606436,5.43607709,150.56,150.52,5.43607709]
[1750161606851,6.92582779,150.57,150.52,5.43607709]
[1750161607036,5.43607709,150.56,150.51,12.07998325]
[1750161607343,5.43607709,150.56,150.51,6.64390616]
[1750161607544,5.43607709,150.56,150.51,12.07998325]
[1750161607746,5.43607709,150.55,150.51,12.07998325]
[1750161607957,6.64197501,150.56,150.51,12.07998325]
[1750161608137,5.43607709,150.55,150.51,12.07998325]
[1750161608750,5.43607709,150.55,150.51,5.43607709]
[1750161608952,24.37004909,150.54,150.48,5.68]
[1750161609142,5.43607709,150.53,150.48,11.11607709]
[1750161609674,5.43607709,150.52,150.48,11.11607709]
[1750161609830,12.07982572,150.52,150.48,11.11607709]
[1750161610555,12.07982572,150.52,150.48,5.68]
[1750161610760,5.43607709,150.52,150.48,11.11607709]
[1750161610963,12.0797468,150.52,150.48,5.68]
[1750161614181,24.37004909,150.51,150.48,5.68]
[1750161614760,5.43607709,150.5,150.48,5.68]
[1750161615177,5.43607709,150.5,150.46,5.43607709]
[1750161615383,18.64964886,150.52,150.49,5.43607709]
[1750161615694,18.64964886,150.52,150.48,5.43607709]
[1750161615858,30.72957503,150.52,150.48,5.43607709]
[1750161616885,30.72957503,150.52,150.45,6.64658516]
[1750161617185,25.29349794,150.52,150.48,5.43607709]
[1750161617365,18.933972,150.54,150.5,5.43607709]
[1750161617679,24.37004909,150.54,150.5,5.43607709]
[1750161617878,5.43607709,150.53,150.49,5.43607709]
[1750161618562,25.57689402,150.54,150.5,5.43607709]
[1750161618873,5.43607709,150.53,150.49,5.43607709]
[1750161619585,25.57689402,150.54,150.49,5.43607709]
[1750161619791,12.07935719,150.53,150.49,5.43607709]
[1750161620098,6.6432801,150.53,150.49,5.43607709]
[1750161620277,12.07935719,150.53,150.49,5.43607709]
[1750161620776,24.08572595,150.52,150.48,5.43607709]
[1750161620977,24.08572595,150.52,150.46,6.64628472]
[1750161621164,24.08572595,150.52,150.47,5.43607709]
[1750161621165,5.43607709,150.51,150.47,5.43607709]
[1750161621779,5.43607709,150.51,150.47,12.08183007]
[1750161622381,5.43607709,150.51,150.47,5.43607709]
[1750161622972,30.72939546,150.52,150.47,5.43607709]
[1750161623578,5.43607709,150.5,150.45,12.08263736]
[1750161623969,12.08077785,150.5,150.45,12.08263736]
[1750161624495,5.43607709,150.47,150.43,5.7]
[1750161624703,5.43607709,150.46,150.42,12.08382719]
[1750161625184,5.43607709,150.46,150.41,6.64838231]
[1750161625373,5.43607709,150.46,150.42,5.43607709]
[1750161625776,44.933972,150.49,150.42,5.43607709]
[1750161626003,5.43607709,150.46,150.42,5.43607709]
[1750161626690,0.28432314,150.47,150.42,5.43607709]
[1750161626988,5.43607709,150.46,150.42,5.43607709]
[1750161627171,5.43607709,150.46,150.41,6.64838231]
[1750161627396,24.37004909,150.45,150.41,5.43607709]
[1750161627708,5.43607709,150.44,150.4,11.13607709]
[1750161627895,5.43607709,150.44,150.4,17.78470415]
[1750161628096,24.37004909,150.45,150.41,5.43607709]
[1750161628713,24.37004909,150.45,150.4,12.34862706]
[1750161629012,24.37004909,150.45,150.41,5.43607709]
[1750161630288,31.0168507,150.45,150.41,5.43607709]
[1750161630489,24.37004909,150.45,150.41,12.0845213]
[1750161630913,13.33847709,150.44,150.36,42.62571475]
[1750161631121,5.43607709,150.42,150.38,5.43607709]
[1750161631306,5.43607709,150.42,150.35,5.7]
[1750161631505,5.43607709,150.41,150.37,5.43607709]
[1750161632108,5.43607709,150.41,150.37,12.08628073]
[1750161632611,18.64964886,150.43,150.38,5.43607709]
[1750161632818,5.43607709,150.42,150.38,5.43607709]
[1750161633408,5.43607709,150.41,150.37,12.08628073]
[1750161633600,5.43607709,150.4,150.36,6.65056839]
[1750161633805,5.43607709,150.4,150.36,12.08664548]
[1750161637896,6.64909493,150.4,150.35,12.35110131]
[1750161638097,5.43607709,150.39,150.35,17.7871784]
[1750161638498,5.43607709,150.38,150.35,5.7]
[1750161638700,5.43607709,150.37,150.35,5.7]
[1750161639318,5.43607709,150.36,150.35,5.7]
[1750161639621,5.43607709,150.36,150.33,6.65176007]
[1750161640002,4.93607709,150.36,150.32,12.08837577]
[1750161640204,4.93607709,150.36,150.32,5.43607709]
[1750161641202,4.93607709,150.36,150.31,6.6527702]
[1750161641402,4.93607709,150.36,150.32,5.43607709]
[1750161643323,4.93607709,150.36,150.32,12.08829363]
[1750161643617,4.93607709,150.36,150.32,6.65221654]
[1750161643825,4.93607709,150.36,150.32,12.08829363]
[1750161644504,44.933972,150.37,150.35,5.43607709]
[1750161644699,1.6429,150.42,150.36,5.43607709]
[1750161644915,12.26170412,150.43,150.39,5.43607709]
[1750161645113,12.26170412,150.43,150.36,5.7]
[1750161645314,12.26170412,150.43,150.4,5.43607709]
[1750161645711,12.26170412,150.43,150.36,5.7]
[1750161645912,18.90941218,150.43,150.36,5.7]
[1750161646112,5.43607709,150.41,150.36,5.7]
[1750161646312,5.43607709,150.41,150.37,5.43607709]
[1750161646523,30.73384536,150.42,150.38,5.43607709]
[1750161647622,25.29776827,150.42,150.38,5.43607709]
[1750161647819,30.73384536,150.42,150.38,5.43607709]
[1750161649330,30.73384536,150.42,150.36,5.7]
[1750161649627,30.73384536,150.42,150.38,5.43607709]
[1750161650112,30.73384536,150.42,150.37,6.64998485]
[1750161650311,30.73384536,150.42,150.38,5.43607709]
[1750161651041,30.73384536,150.42,150.37,6.64998485]
[1750161651204,30.73384536,150.42,150.38,5.43607709]
[1750161651822,24.08572595,150.42,150.38,5.43607709]
[1750161653741,30.73379907,150.42,150.38,5.43607709]
[1750161654847,30.73379907,150.42,150.37,6.64998485]
[1750161655019,30.73379907,150.42,150.38,5.43607709]
[1750161655521,18.64964886,150.42,150.38,5.43607709]
[1750161655713,24.08572595,150.42,150.38,5.43607709]
[1750161657233,18.64964886,150.42,150.38,12.08577104]
[1750161657446,18.64964886,150.42,150.39,5.43607709]
[1750161657954,18.64964886,150.42,150.38,12.08577104]
[1750161658149,18.64964886,150.42,150.4,5.43607709]
[1750161658538,12.26170412,150.43,150.4,5.43607709]
[1750161659655,12.26170412,150.43,150.41,5.43607709]
[1750161660052,12.26170412,150.43,150.4,5.43607709]
[1750161660854,12.26170412,150.43,150.37,23.27591939]
[1750161660855,12.26170412,150.43,150.42,5.43607709]
[1750161661654,12.26170412,150.43,150.41,5.43607709]
[1750161662036,12.26170412,150.43,150.41,12.08431462]
[1750161662250,12.26170412,150.43,150.42,5.43607709]
[1750161664234,12.26170412,150.43,150.42,12.08412921]
[1750161665835,12.26170412,150.43,150.39,23.27276916]
[1750161666031,18.933972,150.42,150.37,6.65026268]
[1750161666240,5.43607709,150.41,150.37,12.08633977]
[1750161666643,24.37004909,150.42,150.38,5.43607709]
[1750161666975,24.37004909,150.42,150.37,6.65026268]
[1750161667150,24.37004909,150.42,150.38,5.43607709]
[1750161667535,31.01817324,150.42,150.38,5.43607709]
[1750161667759,25.58209615,150.42,150.38,5.43607709]
[1750161667949,31.01817324,150.42,150.38,5.43607709]
[1750161668577,18.933972,150.42,150.38,12.08574259]
[1750161668936,24.37004909,150.42,150.38,12.08574259]
[1750161670363,24.37004909,150.42,150.38,6.6496655]
[1750161670742,5.43607709,150.41,150.37,6.65007979]
[1750161671144,5.43607709,150.41,150.37,12.08615688]
[1750161671844,31.01814375,150.42,150.37,12.08615688]
[1750161674372,25.58206666,150.42,150.37,12.08615688]
[1750161674555,31.01814375,150.42,150.37,12.08615688]
[1750161674751,51.58206666,150.42,150.37,5.43607709]
[1750161674956,5.43607709,150.39,150.35,5.43607709]
[1750161675959,5.43607709,150.39,150.35,12.08700391]
[1750161676761,84.64256666,150.42,150.37,5.43607709]
[1750161676762,18.933972,150.4,150.37,5.43607709]
[1750161677163,65.70859466,150.42,150.37,5.43607709]
[1750161677365,59.0605,150.42,150.37,5.43607709]
[1750161677663,64.49657709,150.42,150.38,5.43607709]
[1750161678177,64.49657709,150.42,150.38,12.08576117]
[1750161678480,37.51657709,150.42,150.38,12.08576117]
[1750161678863,37.51657709,150.42,150.38,6.64968408]
[1750161679775,37.51657709,150.42,150.38,5.43607709]
[1750161680580,32.0805,150.42,150.38,5.43607709]
[1750161680779,31.43607709,150.42,150.38,12.08550724]
[1750161682169,5.43607709,150.42,150.38,12.08550724]
[1750161683774,36.34743007,150.43,150.38,12.08550724]
[1750161683983,24.08572595,150.43,150.39,5.43607709]
[1750161684186,18.64964886,150.43,150.39,12.08513709]
[1750161684481,26.28432314,150.44,150.41,5.43607709]
[1750161684667,26.28432314,150.44,150.4,5.43607709]
[1750161685577,26.28432314,150.44,150.4,12.08468266]
[1750161686195,0.28432314,150.44,150.41,5.43607709]
[1750161686608,0.28432314,150.44,150.4,12.08468266]
[1750161687427,0.28432314,150.44,150.41,5.43607709]
[1750161687728,26.0,150.46,150.42,12.08412921]
[1750161687932,26.0,150.46,150.43,5.43607709]
[1750161688238,26.0,150.46,150.42,12.08412921]
[1750161688395,26.0,150.46,150.42,6.64805212]
[1750161688598,31.43607709,150.46,150.42,12.08412921]
[1750161689295,26.0,150.46,150.43,5.43607709]
[1750161690085,26.0,150.46,150.42,12.08412921]
[1750161692726,31.43607709,150.46,150.42,12.08412921]
[1750161693530,26.0,150.46,150.42,12.08412921]
[1750161693712,31.43607709,150.46,150.42,12.08412921]
[1750161694117,26.43607709,150.46,150.42,12.08412921]
[1750161694324,21.0,150.46,150.42,12.08412921]
[1750161694508,21.0,150.46,150.42,6.64805212]
[1750161694715,21.0,150.46,150.43,5.43607709]
[1750161696525,21.0,150.46,150.43,6.64745808]
[1750161696707,21.0,150.46,150.43,12.08353517]
[1750161697627,26.43607709,150.46,150.4,6.64893617]
[1750161697832,26.43607709,150.46,150.39,6.64937828]
[1750161697833,5.43607709,150.44,150.39,6.64937828]
[1750161698011,5.43607709,150.43,150.39,12.08545537]
[1750161698334,5.43607709,150.42,150.39,6.64937828]
[1750161699105,24.08572595,150.43,150.39,6.64937828]
[1750161701626,18.64964886,150.43,150.39,6.64937828]
[1750161701936,5.43607709,150.42,150.39,6.64937828]
[1750161703404,18.64964886,150.43,150.39,6.64937828]
[1750161703610,5.43607709,150.42,150.39,6.64937828]
[1750161705355,5.43607709,150.41,150.37,12.08617913]
[1750161705835,5.43607709,150.4,150.37,6.65010204]
[1750161706043,18.64964886,150.41,150.37,6.65010204]
[1750161706229,24.08572595,150.41,150.37,12.08617913]
[1750161707711,6.19198961,150.48,150.4,5.43607709]
[1750161707915,6.19198961,150.48,150.44,5.43607709]
[1750161707916,18.64964886,150.46,150.44,5.43607709]
[1750161708128,30.0,150.45,150.44,5.43607709]
[1750161708930,22.37564874,150.47,150.42,5.43607709]
[1750161709413,18.64964886,150.46,150.42,5.43607709]
[1750161709607,24.08572595,150.46,150.42,5.43607709]
[1750161709813,18.64964886,150.46,150.41,6.64844484]
[1750161710049,24.08572595,150.46,150.42,5.43607709]
[1750161710634,5.43607709,150.45,150.41,5.43607709]
[1750161710841,18.64964886,150.46,150.4,17.80485447]
[1750161710842,5.43607709,150.44,150.4,17.80485447]
[1750161711020,5.43607709,150.45,150.41,5.43607709]
[1750161711216,5.72040023,150.45,150.41,5.43607709]
[1750161711747,6.64702611,150.45,150.41,12.08450479]
[1750161711921,24.08572595,150.46,150.42,5.43607709]
[1750161712116,30.73217708,150.46,150.4,12.3687596]
[1750161712318,5.43607709,150.44,150.4,5.72]
[1750161712746,5.43607709,150.42,150.4,5.72]
[1750161712942,0.28432314,150.44,150.4,5.72]
[1750161712943,31.43607709,150.43,150.4,5.72]
[1750161713846,31.43607709,150.43,150.4,11.15607709]
[1750161713847,26.0,150.43,150.4,11.15607709]
[1750161714423,0.28432314,150.45,150.42,5.43607709]
[1750161714819,0.28432314,150.45,150.4,12.36892759]
[1750161714820,18.64964886,150.46,150.43,5.43607709]
[1750161715019,36.29358198,150.47,150.44,5.43607709]
[1750161715523,10.29358198,150.47,150.45,5.43607709]
[1750161715924,10.29358198,150.47,150.44,5.43607709]
[1750161718021,10.29358198,150.47,150.44,12.08309026]
[1750161719847,10.29358198,150.47,150.45,5.43607709]
[1750161720149,10.29358198,150.47,150.42,6.64805212]
[1750161720351,10.29358198,150.47,150.45,5.43607709]
[1750161723647,10.29358198,150.47,150.43,6.64748672]
[1750161723834,6.64545771,150.48,150.45,5.43607709]
[1750161724755,30.73082191,150.49,150.45,5.43607709]
[1750161725646,11.69720535,150.51,150.48,5.43607709]
[1750161725850,11.69720535,150.51,150.45,6.64671534]
[1750161725851,11.69720535,150.51,150.49,5.43607709]
[1750161729246,11.69720535,150.51,150.5,5.43607709]
[1750161730457,11.69720535,150.51,150.5,12.08059536]
[1750161733567,11.69720535,150.51,150.48,6.64540138]
[1750161733766,11.69720535,150.51,150.5,5.43607709]
[1750161734768,11.69720535,150.51,150.5,12.08059536]
[1750161735772,20.25290065,150.57,150.5,12.08059536]
[1750161735951,18.79181043,150.57,150.53,5.43607709]
[1750161736139,51.29072938,150.58,150.55,5.43607709]
[1750161736140,26.0,150.58,150.55,5.43607709]
[1750161736543,64.4659092,150.59,150.55,5.43607709]
[1750161736746,52.38899578,150.59,150.55,5.43607709]
[1750161736971,52.38899578,150.59,150.55,12.07837873]
[1750161737566,52.38899578,150.59,150.55,6.64230164]
[1750161737749,52.38899578,150.59,150.55,12.07837873]
[1750161738152,18.64964886,150.59,150.55,12.07837873]
[1750161738374,6.64023558,150.6,150.55,12.07837873]
[1750161738574,12.07631267,150.6,150.56,5.43607709]
[1750161738781,11.07631267,150.6,150.55,12.07837873]
[1750161739446,5.43607709,150.6,150.56,5.43607709]
[1750161740044,12.07622594,150.6,150.56,5.43607709]
[1750161741385,18.933972,150.6,150.57,5.43607709]
[1750161741676,18.933972,150.6,150.56,6.64155851]
[1750161741677,24.37004909,150.6,150.56,12.0776356]
[1750161741874,5.43607709,150.59,150.55,12.07820498]
[1750161743866,18.64964886,150.57,150.53,5.43607709]
[1750161744066,18.933972,150.59,150.55,5.43607709]
[1750161744258,24.08572595,150.6,150.52,6.64363539]
[1750161744259,24.08572595,150.6,150.56,5.43607709]
[1750161744457,18.64964886,150.6,150.56,5.43607709]
[1750161744655,18.64964886,150.6,150.57,5.43607709]
[1750161745251,26.0,150.61,150.57,6.64125408]
[1750161745454,18.933972,150.62,150.59,5.43607709]